[Event "Early-Titled-Tuesday-Blitz-March-12-2024"]
[Site "Chess.com"]
[Date "2024.03.12"]
[Round "3"]
[White "NelsonLinda"]
[Black "waltereador"]
[Result "1-0"]
[WhiteElo "2616"]
[BlackElo "2324"]
[TimeControl "180+1"]
[EndTime "8:30:06 PDT"]
[Termination "NelsonLinda won by resignation"]

1. b3 {[%clk 0:02:39]} 1... d5 {[%clk 0:02:56.6]} 2. Bb2 {[%clk 0:02:39]} 2...
c5 {[%clk 0:02:56.8]} 3. e3 {[%clk 0:02:38.3]} 3... Nf6 {[%clk 0:02:57.4]} 4.
Nf3 {[%clk 0:02:38.1]} 4... Nc6 {[%clk 0:02:57.6]} 5. Bb5 {[%clk 0:02:38.6]}
5... Bd7 {[%clk 0:02:57.6]} 6. O-O {[%clk 0:02:38.4]} 6... e6 {[%clk 0:02:57.8]}
7. d4 {[%clk 0:02:38.3]} 7... a6 {[%clk 0:02:53.9]} 8. Bxc6 {[%clk 0:02:36.2]}
8... Bxc6 {[%clk 0:02:53.9]} 9. Ne5 {[%clk 0:02:36.9]} 9... Rc8 {[%clk
0:02:53.1]} 10. Nd2 {[%clk 0:02:36.4]} 10... Be7 {[%clk 0:02:52.4]} 11. dxc5
{[%clk 0:02:34]} 11... Bxc5 {[%clk 0:02:52.2]} 12. Nxc6 {[%clk 0:02:33.1]} 12...
Rxc6 {[%clk 0:02:51.9]} 13. Nf3 {[%clk 0:02:33.7]} 13... O-O {[%clk 0:02:51.3]}
14. Qe2 {[%clk 0:02:32.5]} 14... Ne4 {[%clk 0:02:47]} 15. Rfd1 {[%clk
0:02:30.4]} 15... Qc8 {[%clk 0:02:46]} 16. Ne5 {[%clk 0:02:24.1]} 16... Rc7
{[%clk 0:02:44.9]} 17. c4 {[%clk 0:02:24]} 17... dxc4 {[%clk 0:02:41.7]} 18.
Nxc4 {[%clk 0:02:18.3]} 18... b5 {[%clk 0:02:40]} 19. Ne5 {[%clk 0:02:08.9]}
19... Be7 {[%clk 0:02:39.9]} 20. Rac1 {[%clk 0:02:08.1]} 20... Nc3 {[%clk
0:02:35.8]} 21. Bxc3 {[%clk 0:02:05.3]} 21... Rxc3 {[%clk 0:02:36.7]} 22. Qd2
{[%clk 0:01:57.6]} 22... Rxc1 {[%clk 0:02:34.7]} 23. Rxc1 {[%clk 0:01:58.5]}
23... Qb7 {[%clk 0:02:33.9]} 24. Qc2 {[%clk 0:01:44.8]} 24... Bd6 {[%clk
0:02:25.8]} 25. Nf3 {[%clk 0:01:42.7]} 25... h6 {[%clk 0:02:24.6]} 26. h3 {[%clk
0:01:40]} 26... Rd8 {[%clk 0:02:24.3]} 27. Qc6 {[%clk 0:01:32.2]} 27... Qa7
{[%clk 0:02:14.6]} 28. g3 {[%clk 0:01:26.2]} 28... Ba3 {[%clk 0:02:13.5]} 29.
Rc2 {[%clk 0:01:25.2]} 29... Rd1+ {[%clk 0:02:05]} 30. Kg2 {[%clk 0:01:25.3]}
30... Rd8 {[%clk 0:02:04.5]} 31. Ne5 {[%clk 0:01:22.3]} 31... Qa8 {[%clk
0:02:04]} 32. Qxa8 {[%clk 0:01:19.8]} 32... Rxa8 {[%clk 0:02:04.4]} 33. Rc6
{[%clk 0:01:19.6]} 33... Be7 {[%clk 0:02:03.6]} 34. a4 {[%clk 0:01:09.4]} 34...
bxa4 {[%clk 0:02:02.8]} 35. bxa4 {[%clk 0:01:10.3]} 35... a5 {[%clk 0:02:03.3]}
36. Nc4 {[%clk 0:01:10.5]} 36... Bb4 {[%clk 0:02:03.3]} 37. Kf3 {[%clk
0:01:05.2]} 37... g6 {[%clk 0:01:56.2]} 38. Ke4 {[%clk 0:01:02.7]} 38... Ra7
{[%clk 0:01:56.5]} 39. Ne5 {[%clk 0:00:57.6]} 39... Kg7 {[%clk 0:01:56]} 40. Rb6
{[%clk 0:00:56]} 40... Rc7 {[%clk 0:01:51.2]} 41. Nc6 {[%clk 0:00:55]} 41... Be1
{[%clk 0:01:51.2]} 42. Kf3 {[%clk 0:00:54.9]} 42... h5 {[%clk 0:01:46.1]} 43.
Ra6 {[%clk 0:00:51.6]} 43... Rd7 {[%clk 0:01:38.5]} 44. Ke2 {[%clk 0:00:48]}
44... Bc3 {[%clk 0:01:36.2]} 45. Nxa5 {[%clk 0:00:45.5]} 45... Rd2+ {[%clk
0:01:36.2]} 46. Kf1 {[%clk 0:00:44.9]} 46... Ra2 {[%clk 0:01:29.9]} 47. Nc4
{[%clk 0:00:40.8]} 47... h4 {[%clk 0:01:28.6]} 48. gxh4 {[%clk 0:00:36.5]} 48...
Bf6 {[%clk 0:01:28.2]} 49. Nd6 {[%clk 0:00:15.3]} 49... Bxh4 {[%clk 0:01:27.9]}
50. Ne4 {[%clk 0:00:15.9]} 50... Be7 {[%clk 0:01:24.3]} 51. Ra7 {[%clk
0:00:12.5]} 51... Bb4 {[%clk 0:01:22]} 52. Ng5 {[%clk 0:00:12.3]} 52... Kf6
{[%clk 0:01:18.9]} 53. Nxf7 {[%clk 0:00:11.1]} 53... Ra1+ {[%clk 0:01:09.9]} 54.
Kg2 {[%clk 0:00:10.8]} 54... Ra2 {[%clk 0:01:09.2]} 55. Nh6 {[%clk 0:00:10.8]}
55... Bc5 {[%clk 0:01:07.8]} 56. Ra5 {[%clk 0:00:10.2]} 56... Bb6 {[%clk
0:01:06.2]} 57. Ra6 {[%clk 0:00:10.3]} 57... Bc5 {[%clk 0:01:05.9]} 58. Ng4+
{[%clk 0:00:10.3]} 58... Ke7 {[%clk 0:01:00.6]} 59. Kf3 {[%clk 0:00:10.4]} 59...
Bb4 {[%clk 0:00:58.1]} 60. Ke4 {[%clk 0:00:09.7]} 60... Be1 {[%clk 0:00:57.1]}
61. Ra7+ {[%clk 0:00:07.5]} 61... Kd6 {[%clk 0:00:56.3]} 62. Ra6+ {[%clk
0:00:07]} 62... Ke7 {[%clk 0:00:56.5]} 63. Ke5 {[%clk 0:00:05.4]} 63... Bc3+
{[%clk 0:00:52.9]} 64. Kf4 {[%clk 0:00:05.6]} 64... Be1 {[%clk 0:00:52.8]} 65.
f3 {[%clk 0:00:05.3]} 65... Rc2 {[%clk 0:00:41.8]} 66. Kg5 {[%clk 0:00:05.2]}
66... Rc8 {[%clk 0:00:26.2]} 67. Ra7+ {[%clk 0:00:04.3]} 67... Kd6 {[%clk
0:00:26]} 68. Ra6+ {[%clk 0:00:04.6]} 68... Ke7 {[%clk 0:00:24.4]} 69. Kxg6
{[%clk 0:00:05.1]} 69... Rg8+ {[%clk 0:00:24.2]} 70. Kh7 {[%clk 0:00:05.7]}
70... Rb8 {[%clk 0:00:23.2]} 71. Ra7+ {[%clk 0:00:05.8]} 71... Kd6 {[%clk
0:00:22.5]} 72. Nf6 {[%clk 0:00:06.1]} 72... Rb3 {[%clk 0:00:21.1]} 73. Ng4
{[%clk 0:00:06.4]} 73... Bg3 {[%clk 0:00:20.3]} 74. Kg6 {[%clk 0:00:06.6]} 74...
e5 {[%clk 0:00:19.8]} 75. Ra6+ {[%clk 0:00:07]} 75... Kc5 {[%clk 0:00:19.7]} 76.
Kf5 {[%clk 0:00:07.6]} 76... e4 {[%clk 0:00:18.9]} 77. Kxe4 {[%clk 0:00:07.6]}
77... Kb4 {[%clk 0:00:19.3]} 78. Rb6+ {[%clk 0:00:07.7]} 78... Kxa4 {[%clk
0:00:19.8]} 79. Rxb3 {[%clk 0:00:07.9]} 79... Kxb3 {[%clk 0:00:20.7]} 80. Kd5
{[%clk 0:00:07.2]} 80... Kc3 {[%clk 0:00:20.2]} 81. f4 {[%clk 0:00:07.9]} 81...
Kd3 {[%clk 0:00:20.7]} 82. f5 {[%clk 0:00:08.7]} 82... Ke2 {[%clk 0:00:21.2]}
83. f6 {[%clk 0:00:09.3]} 83... Bh4 {[%clk 0:00:21]} 84. Ke6 {[%clk 0:00:09.4]}
84... Kf3 {[%clk 0:00:18.8]} 85. f7 {[%clk 0:00:09.8]} 85... Be7 {[%clk
0:00:18.9]} 86. Kxe7 {[%clk 0:00:10]} 1-0

[Event "Early-Titled-Tuesday-Blitz-March-12-2024"]
[Site "Chess.com"]
[Date "2024.03.12"]
[Round "3"]
[White "Mikhail_Golubev"]
[Black "chess_blitz00"]
[Result "1-0"]
[WhiteElo "2708"]
[BlackElo "2481"]
[TimeControl "180+1"]
[EndTime "8:30:30 PDT"]
[Termination "Mikhail_Golubev won by resignation"]

1. e4 {[%clk 0:03:00.9]} 1... e6 {[%clk 0:02:58.1]} 2. d4 {[%clk 0:03:00.1]}
2... d5 {[%clk 0:02:58.7]} 3. Nc3 {[%clk 0:03:00.4]} 3... Bb4 {[%clk 0:02:57]}
4. e5 {[%clk 0:03:00.1]} 4... c5 {[%clk 0:02:57.2]} 5. a3 {[%clk 0:03:00.3]}
5... Bxc3+ {[%clk 0:02:56.7]} 6. bxc3 {[%clk 0:03:01.2]} 6... Nc6 {[%clk
0:02:54.7]} 7. Nf3 {[%clk 0:02:59.7]} 7... Nge7 {[%clk 0:02:51.3]} 8. a4 {[%clk
0:02:59.8]} 8... Qa5 {[%clk 0:02:49.8]} 9. Bd2 {[%clk 0:02:59.9]} 9... c4 {[%clk
0:02:46.8]} 10. g3 {[%clk 0:02:59]} 10... Bd7 {[%clk 0:02:44.8]} 11. Bg2 {[%clk
0:02:59.3]} 11... h6 {[%clk 0:02:34]} 12. O-O {[%clk 0:02:58.8]} 12... O-O-O
{[%clk 0:02:15.6]} 13. Qc1 {[%clk 0:02:57.5]} 13... Nf5 {[%clk 0:01:59.7]} 14.
Qa3 {[%clk 0:02:48.3]} 14... Rde8 {[%clk 0:01:38.4]} 15. Rab1 {[%clk 0:02:44.9]}
15... Nb8 {[%clk 0:01:12.7]} 16. Rb4 {[%clk 0:02:31]} 16... Na6 {[%clk
0:01:12.1]} 17. Rbb1 {[%clk 0:02:08.1]} 17... Qxa4 {[%clk 0:01:07.8]} 18. Qb2
{[%clk 0:02:05.2]} 18... Qc6 {[%clk 0:01:06.4]} 19. Ra1 {[%clk 0:02:02.7]} 19...
Qb6 {[%clk 0:00:56.3]} 20. Qa3 {[%clk 0:01:58.4]} 20... Bc6 {[%clk 0:00:48]} 21.
Rfb1 {[%clk 0:01:56.3]} 21... Qc7 {[%clk 0:00:48.2]} 22. h4 {[%clk 0:01:51.5]}
22... g6 {[%clk 0:00:37.5]} 23. Bf4 {[%clk 0:01:44.9]} 23... Qe7 {[%clk
0:00:33.8]} 24. Qb2 {[%clk 0:01:43.7]} 24... Qc7 {[%clk 0:00:32.6]} 25. Nd2
{[%clk 0:01:40.1]} 25... Reg8 {[%clk 0:00:31.4]} 26. Rxa6 {[%clk 0:01:26.5]}
26... bxa6 {[%clk 0:00:29.5]} 27. Nxc4 {[%clk 0:01:26.7]} 27... Kd7 {[%clk
0:00:13.1]} 28. Nd2 {[%clk 0:01:10.8]} 28... Rb8 {[%clk 0:00:13.4]} 29. Nb3
{[%clk 0:01:11]} 29... Ke7 {[%clk 0:00:12]} 30. Qa3+ {[%clk 0:01:10]} 30... Ke8
{[%clk 0:00:11.2]} 31. Ra1 {[%clk 0:00:55.5]} 31... Bb5 {[%clk 0:00:08.5]} 32.
Nc5 {[%clk 0:00:55.4]} 32... Qe7 {[%clk 0:00:07.6]} 33. Qa5 {[%clk 0:00:54.6]}
33... Kf8 {[%clk 0:00:07.7]} 34. Nxa6 {[%clk 0:00:52.4]} 34... Bxa6 {[%clk
0:00:07.2]} 35. Qxa6 {[%clk 0:00:53]} 35... Kg7 {[%clk 0:00:07.8]} 36. Bf1
{[%clk 0:00:30.3]} 36... Rhc8 {[%clk 0:00:07.9]} 37. Bd2 {[%clk 0:00:28.6]}
37... Qb7 {[%clk 0:00:07.2]} 38. Qxa7 {[%clk 0:00:25.3]} 38... Qxa7 {[%clk
0:00:07.2]} 39. Rxa7 {[%clk 0:00:26.2]} 39... Rb1 {[%clk 0:00:06.5]} 40. Kg2
{[%clk 0:00:26]} 40... h5 {[%clk 0:00:06.5]} 41. Kf3 {[%clk 0:00:24]} 41... Rb2
{[%clk 0:00:06.3]} 42. Bd3 {[%clk 0:00:23.9]} 42... Rb1 {[%clk 0:00:06]} 43. Ke2
{[%clk 0:00:23.9]} 43... Rcb8 {[%clk 0:00:06.1]} 44. Bg5 {[%clk 0:00:21.6]}
44... R8b7 {[%clk 0:00:06.6]} 45. Bf6+ {[%clk 0:00:21.3]} 45... Kg8 {[%clk
0:00:05.2]} 46. Ra8+ {[%clk 0:00:20.6]} 46... Rb8 {[%clk 0:00:05.8]} 47. Ra3
{[%clk 0:00:20.3]} 47... R1b7 {[%clk 0:00:05.8]} 48. Kd2 {[%clk 0:00:18.8]}
48... Ng7 {[%clk 0:00:05.5]} 49. c4 {[%clk 0:00:17.5]} 49... dxc4 {[%clk
0:00:05.2]} 50. Bxc4 {[%clk 0:00:17.7]} 50... Ne8 {[%clk 0:00:06.1]} 51. Bg5
{[%clk 0:00:17]} 51... Rc7 {[%clk 0:00:06.3]} 52. Bd3 {[%clk 0:00:16.5]} 52...
Rb4 {[%clk 0:00:05.5]} 53. Ke3 {[%clk 0:00:13.4]} 53... Rb8 {[%clk 0:00:04.8]}
54. c4 {[%clk 0:00:13.5]} 54... Rbc8 {[%clk 0:00:04.7]} 55. d5 {[%clk
0:00:13.2]} 55... exd5 {[%clk 0:00:03.8]} 56. cxd5 {[%clk 0:00:13.4]} 56... Rd7
{[%clk 0:00:04]} 57. d6 {[%clk 0:00:12.4]} 57... Nxd6 {[%clk 0:00:03.7]} 58.
exd6 {[%clk 0:00:11.9]} 58... Rxd6 {[%clk 0:00:04.3]} 59. Bf4 {[%clk 0:00:11.6]}
59... Re6+ {[%clk 0:00:04.3]} 60. Kf3 {[%clk 0:00:11.2]} 60... Rd8 {[%clk
0:00:03.9]} 61. Bc4 {[%clk 0:00:10.8]} 61... Ree8 {[%clk 0:00:03.6]} 62. Ba2
{[%clk 0:00:10.4]} 62... Rd7 {[%clk 0:00:02.7]} 63. Kg2 {[%clk 0:00:09.2]} 63...
Ree7 {[%clk 0:00:03]} 64. Bc4 {[%clk 0:00:08.8]} 64... Re8 {[%clk 0:00:03]} 65.
Ra4 {[%clk 0:00:08.5]} 65... Red8 {[%clk 0:00:02.8]} 66. Bb5 {[%clk 0:00:08.2]}
66... Rb7 {[%clk 0:00:03.3]} 67. Bc6 {[%clk 0:00:08.1]} 67... Rb6 {[%clk
0:00:03.4]} 68. Bf3 {[%clk 0:00:07.6]} 68... Rf6 {[%clk 0:00:04]} 69. Bg5 {[%clk
0:00:07.4]} 69... Rdd6 {[%clk 0:00:04.7]} 70. Bxf6 {[%clk 0:00:07.3]} 70... Rxf6
{[%clk 0:00:05.6]} 71. Ra7 {[%clk 0:00:07.3]} 71... Kg7 {[%clk 0:00:05.7]} 72.
Bd5 {[%clk 0:00:07.5]} 72... Rf5 {[%clk 0:00:06.2]} 73. Ba2 {[%clk 0:00:07.7]}
73... Rf6 {[%clk 0:00:06.8]} 74. f4 {[%clk 0:00:07.8]} 74... Rf5 {[%clk
0:00:07.3]} 75. Kf3 {[%clk 0:00:08.1]} 75... Kf8 {[%clk 0:00:06.5]} 76. Ke4
{[%clk 0:00:08.3]} 76... Rf6 {[%clk 0:00:04.1]} 77. Bd5 {[%clk 0:00:08.4]} 77...
Rf5 {[%clk 0:00:03.7]} 78. Rb7 {[%clk 0:00:07.9]} 78... Rf6 {[%clk 0:00:04.2]}
79. Rc7 {[%clk 0:00:07.9]} 79... Rf5 {[%clk 0:00:04.6]} 80. Rd7 {[%clk
0:00:07.6]} 80... Rf6 {[%clk 0:00:04.7]} 81. Rxf7+ {[%clk 0:00:07.2]} 81... Rxf7
{[%clk 0:00:04.8]} 82. Bxf7 {[%clk 0:00:07.6]} 82... Kxf7 {[%clk 0:00:05.7]} 83.
Ke5 {[%clk 0:00:07.6]} 83... Ke7 {[%clk 0:00:03.7]} 84. f5 {[%clk 0:00:08]}
84... Kf7 {[%clk 0:00:03.6]} 85. fxg6+ {[%clk 0:00:08.3]} 85... Kxg6 {[%clk
0:00:04]} 86. Ke6 {[%clk 0:00:08.9]} 86... Kg7 {[%clk 0:00:03]} 87. Kf5 {[%clk
0:00:09]} 87... Kh6 {[%clk 0:00:03.3]} 88. Kf6 {[%clk 0:00:09.4]} 88... Kh7
{[%clk 0:00:04.1]} 89. Kg5 {[%clk 0:00:10]} 89... Kg7 {[%clk 0:00:04.9]} 90.
Kxh5 {[%clk 0:00:10.7]} 90... Kh7 {[%clk 0:00:05.8]} 91. Kg5 {[%clk 0:00:11.5]}
91... Kg7 {[%clk 0:00:06.7]} 92. h5 {[%clk 0:00:12.1]} 92... Kh7 {[%clk
0:00:07.6]} 93. h6 {[%clk 0:00:12.5]} 93... Kh8 {[%clk 0:00:08.1]} 94. Kh5
{[%clk 0:00:13.2]} 94... Kh7 {[%clk 0:00:08.7]} 95. g4 {[%clk 0:00:13.8]} 95...
Kh8 {[%clk 0:00:09.4]} 96. g5 {[%clk 0:00:14.5]} 96... Kg8 {[%clk 0:00:10.1]}
97. g6 {[%clk 0:00:15.3]} 97... Kh8 {[%clk 0:00:10.8]} 98. Kg5 {[%clk
0:00:15.7]} 98... Kg8 {[%clk 0:00:11.2]} 99. Kf6 {[%clk 0:00:15.7]} 99... Kh8
{[%clk 0:00:12.1]} 100. g7+ {[%clk 0:00:12.5]} 100... Kg8 {[%clk 0:00:12.5]}
101. h7+ {[%clk 0:00:11.5]} 101... Kxh7 {[%clk 0:00:13]} 102. Kf7 {[%clk
0:00:12.1]} 1-0

[Event "Early-Titled-Tuesday-Blitz-March-12-2024"]
[Site "Chess.com"]
[Date "2024.03.12"]
[Round "3"]
[White "Russian_berezka"]
[Black "matagordo"]
[Result "1/2-1/2"]
[WhiteElo "2575"]
[BlackElo "2257"]
[TimeControl "180+1"]
[EndTime "8:32:06 PDT"]
[Termination "Game drawn by 50-move rule"]

1. d4 {[%clk 0:03:00.9]} 1... Nf6 {[%clk 0:02:59.4]} 2. c4 {[%clk 0:03:01.4]}
2... d6 {[%clk 0:02:59.5]} 3. Nf3 {[%clk 0:03:00.7]} 3... g6 {[%clk 0:02:58.9]}
4. Nc3 {[%clk 0:03:01.2]} 4... Bf5 {[%clk 0:02:58.6]} 5. Qb3 {[%clk 0:03:00.2]}
5... b6 {[%clk 0:02:56.1]} 6. h3 {[%clk 0:02:55.8]} 6... Ne4 {[%clk 0:02:48.4]}
7. g4 {[%clk 0:02:49.3]} 7... Nxc3 {[%clk 0:02:47.1]} 8. gxf5 {[%clk 0:02:47.4]}
8... Ne4 {[%clk 0:02:47.1]} 9. fxg6 {[%clk 0:02:36]} 9... hxg6 {[%clk
0:02:25.3]} 10. Bg2 {[%clk 0:02:35.9]} 10... c6 {[%clk 0:02:23.2]} 11. Nd2
{[%clk 0:02:16.3]} 11... Nxd2 {[%clk 0:02:16.1]} 12. Bxd2 {[%clk 0:02:16.6]}
12... Bg7 {[%clk 0:02:15.7]} 13. Qd3 {[%clk 0:02:11.8]} 13... Qc8 {[%clk
0:01:47.6]} 14. O-O-O {[%clk 0:02:08.7]} 14... Qa6 {[%clk 0:01:35.2]} 15. Kb1
{[%clk 0:02:07.3]} 15... Nd7 {[%clk 0:01:22.7]} 16. Bxc6 {[%clk 0:02:05.2]}
16... Rc8 {[%clk 0:01:20.3]} 17. Bb5 {[%clk 0:01:30.8]} 17... Qb7 {[%clk
0:01:20.1]} 18. h4 {[%clk 0:01:21.7]} 18... a6 {[%clk 0:01:14.3]} 19. Ba4 {[%clk
0:01:21]} 19... Rb8 {[%clk 0:01:00.1]} 20. Bg5 {[%clk 0:01:15]} 20... b5 {[%clk
0:00:51.2]} 21. cxb5 {[%clk 0:01:15.6]} 21... axb5 {[%clk 0:00:52.1]} 22. Bb3
{[%clk 0:01:15.7]} 22... b4 {[%clk 0:00:36.9]} 23. f4 {[%clk 0:01:12.8]} 23...
Qb5 {[%clk 0:00:27.2]} 24. Qxb5 {[%clk 0:00:58.4]} 24... Rxb5 {[%clk 0:00:28.1]}
25. Rc1 {[%clk 0:00:34.5]} 25... Rb8 {[%clk 0:00:23]} 26. f5 {[%clk 0:00:29.5]}
26... gxf5 {[%clk 0:00:20.8]} 27. e3 {[%clk 0:00:28]} 27... f6 {[%clk
0:00:19.3]} 28. Bf4 {[%clk 0:00:27.9]} 28... e5 {[%clk 0:00:20]} 29. Bg3 {[%clk
0:00:27.5]} 29... Ke7 {[%clk 0:00:19.4]} 30. Rc7 {[%clk 0:00:24]} 30... Rhc8
{[%clk 0:00:19.3]} 31. Rhc1 {[%clk 0:00:21.7]} 31... Kd8 {[%clk 0:00:18.4]} 32.
Ra7 {[%clk 0:00:18]} 32... Rxc1+ {[%clk 0:00:17.6]} 33. Kxc1 {[%clk 0:00:18.9]}
33... Bh6 {[%clk 0:00:14.6]} 34. Be6 {[%clk 0:00:07.1]} 34... Bxe3+ {[%clk
0:00:14.1]} 35. Kd1 {[%clk 0:00:07.1]} 35... Nb6 {[%clk 0:00:13.1]} 36. dxe5
{[%clk 0:00:03.8]} 36... dxe5 {[%clk 0:00:11.3]} 37. Bxf5 {[%clk 0:00:04.5]}
37... Nc4 {[%clk 0:00:08.8]} 38. b3 {[%clk 0:00:04.1]} 38... Bxa7 {[%clk
0:00:08.5]} 39. bxc4 {[%clk 0:00:03.2]} 39... Ke7 {[%clk 0:00:08.9]} 40. h5
{[%clk 0:00:02.7]} 40... Be3 {[%clk 0:00:06.6]} 41. Ke2 {[%clk 0:00:02.1]} 41...
Bg5 {[%clk 0:00:07.2]} 42. Bf2 {[%clk 0:00:02.4]} 42... b3 {[%clk 0:00:07]} 43.
Bc5+ {[%clk 0:00:02.3]} 43... Kf7 {[%clk 0:00:07.2]} 44. axb3 {[%clk 0:00:02.8]}
44... Rxb3 {[%clk 0:00:06.8]} 45. Bg6+ {[%clk 0:00:03.4]} 45... Kg7 {[%clk
0:00:06.8]} 46. Bf2 {[%clk 0:00:03.1]} 46... Rb2+ {[%clk 0:00:06.6]} 47. Kf3
{[%clk 0:00:03]} 47... Rb4 {[%clk 0:00:07.1]} 48. c5 {[%clk 0:00:02.8]} 48...
Rc4 {[%clk 0:00:07]} 49. Be4 {[%clk 0:00:02.8]} 49... Kh6 {[%clk 0:00:06.9]} 50.
Bg6 {[%clk 0:00:02.6]} 50... f5 {[%clk 0:00:05]} 51. Bxf5 {[%clk 0:00:02.4]}
51... Kxh5 {[%clk 0:00:05.5]} 52. Be4 {[%clk 0:00:02.8]} 52... Kh6 {[%clk
0:00:05]} 53. c6 {[%clk 0:00:02.7]} 53... Kg7 {[%clk 0:00:05.2]} 54. Bb6 {[%clk
0:00:02.8]} 54... Bf6 {[%clk 0:00:03.7]} 55. c7 {[%clk 0:00:03.1]} 55... Rc3+
{[%clk 0:00:03.6]} 56. Kg4 {[%clk 0:00:03]} 56... Kf7 {[%clk 0:00:02.3]} 57. Bf5
{[%clk 0:00:02.7]} 57... Ke7 {[%clk 0:00:01.8]} 58. c8=Q {[%clk 0:00:03]} 58...
Rxc8 {[%clk 0:00:02.5]} 59. Bxc8 {[%clk 0:00:03.9]} 59... Kd6 {[%clk 0:00:03.1]}
60. Bf5 {[%clk 0:00:04.5]} 60... Ke7 {[%clk 0:00:02.6]} 61. Be4 {[%clk
0:00:04.2]} 61... Kf7 {[%clk 0:00:03.1]} 62. Kf5 {[%clk 0:00:05.1]} 62... Bg7
{[%clk 0:00:01.8]} 63. Bc7 {[%clk 0:00:05.2]} 63... Ke7 {[%clk 0:00:01.9]} 64.
Bd5 {[%clk 0:00:05.4]} 64... Kd7 {[%clk 0:00:02.1]} 65. Bb6 {[%clk 0:00:05.8]}
65... Kd6 {[%clk 0:00:02.7]} 66. Be4 {[%clk 0:00:06.5]} 66... Kd7 {[%clk
0:00:02.2]} 67. Ba5 {[%clk 0:00:06.6]} 67... Kd6 {[%clk 0:00:02.7]} 68. Bb4+
{[%clk 0:00:07.2]} 68... Kc7 {[%clk 0:00:03.2]} 69. Bd5 {[%clk 0:00:07.6]} 69...
Kb6 {[%clk 0:00:03.8]} 70. Be7 {[%clk 0:00:07.2]} 70... Kc7 {[%clk 0:00:03.8]}
71. Kg6 {[%clk 0:00:07.3]} 71... Bh8 {[%clk 0:00:02.9]} 72. Kh7 {[%clk
0:00:07.4]} 72... Kd7 {[%clk 0:00:03]} 73. Bg5 {[%clk 0:00:07.5]} 73... Kd6
{[%clk 0:00:02.8]} 74. Be4 {[%clk 0:00:08]} 74... Bf6 {[%clk 0:00:02.1]} 75.
Bxf6 {[%clk 0:00:07.9]} 75... Ke6 {[%clk 0:00:03]} 76. Bh8 {[%clk 0:00:08]}
76... Kd6 {[%clk 0:00:03.1]} 77. Kg6 {[%clk 0:00:08.7]} 77... Ke6 {[%clk
0:00:03.7]} 78. Bg7 {[%clk 0:00:08.9]} 78... Ke7 {[%clk 0:00:03.9]} 79. Bxe5
{[%clk 0:00:08.9]} 79... Ke6 {[%clk 0:00:04.8]} 80. Bd4 {[%clk 0:00:09.1]} 80...
Kd6 {[%clk 0:00:05.7]} 81. Kf5 {[%clk 0:00:09]} 81... Ke7 {[%clk 0:00:05.6]} 82.
Ke5 {[%clk 0:00:09.1]} 82... Kd7 {[%clk 0:00:06.5]} 83. Bd5 {[%clk 0:00:09.3]}
83... Kc7 {[%clk 0:00:07.4]} 84. Bc5 {[%clk 0:00:09.9]} 84... Kd7 {[%clk
0:00:08.3]} 85. Bd6 {[%clk 0:00:09.8]} 85... Kc8 {[%clk 0:00:08.6]} 86. Bc6
{[%clk 0:00:10]} 86... Kd8 {[%clk 0:00:08.9]} 87. Ke6 {[%clk 0:00:10.1]} 87...
Kc8 {[%clk 0:00:09.2]} 88. Bf4 {[%clk 0:00:08.8]} 88... Kd8 {[%clk 0:00:10.1]}
89. Bd5 {[%clk 0:00:08]} 89... Ke8 {[%clk 0:00:10.3]} 90. Kd6 {[%clk 0:00:06.9]}
90... Kd8 {[%clk 0:00:11.2]} 91. Bg5+ {[%clk 0:00:07.1]} 91... Ke8 {[%clk
0:00:12.1]} 92. Be6 {[%clk 0:00:06.6]} 92... Kf8 {[%clk 0:00:12.2]} 93. Bf6
{[%clk 0:00:06.8]} 93... Ke8 {[%clk 0:00:12.2]} 94. Bd5 {[%clk 0:00:07.1]} 94...
Kf8 {[%clk 0:00:12.7]} 95. Ke5 {[%clk 0:00:08]} 95... Ke8 {[%clk 0:00:12.9]} 96.
Kf5 {[%clk 0:00:08.9]} 96... Kd7 {[%clk 0:00:13.4]} 97. Be5 {[%clk 0:00:09.3]}
97... Ke7 {[%clk 0:00:13.3]} 98. Be6 {[%clk 0:00:09.7]} 98... Kd8 {[%clk
0:00:13.5]} 99. Kf6 {[%clk 0:00:09.7]} 99... Ke8 {[%clk 0:00:14]} 100. Bd6
{[%clk 0:00:08.9]} 100... Kd8 {[%clk 0:00:14.5]} 101. Bg4 {[%clk 0:00:07]}
101... Ke8 {[%clk 0:00:15]} 102. Ke6 {[%clk 0:00:06.2]} 102... Kd8 {[%clk
0:00:15.1]} 103. Bh5 {[%clk 0:00:06.7]} 103... Kc8 {[%clk 0:00:15.3]} 104. Be8
{[%clk 0:00:05.8]} 104... Kd8 {[%clk 0:00:15.5]} 105. Bb5 {[%clk 0:00:05.8]}
105... Kc8 {[%clk 0:00:15.9]} 106. Ke7 {[%clk 0:00:06.2]} 106... Kb7 {[%clk
0:00:16.2]} 107. Kd7 {[%clk 0:00:06.6]} 107... Kb6 {[%clk 0:00:16.6]} 108. Bc6
{[%clk 0:00:05.3]} 108... Ka6 {[%clk 0:00:16.6]} 109. Bd5 {[%clk 0:00:03.8]}
109... Kb6 {[%clk 0:00:17.5]} 110. Ke6 {[%clk 0:00:04.6]} 110... Kb5 {[%clk
0:00:17.9]} 111. Ke5 {[%clk 0:00:05.5]} 111... Kb6 {[%clk 0:00:18.1]} 112. Kd4
{[%clk 0:00:05.2]} 112... Kb5 {[%clk 0:00:19]} 113. Be4 {[%clk 0:00:03.8]}
113... Kb6 {[%clk 0:00:19.9]} 114. Kd5 {[%clk 0:00:03.7]} 114... Kb7 {[%clk
0:00:20.1]} 115. Bd3 {[%clk 0:00:03.8]} 115... Kb6 {[%clk 0:00:21]} 116. Bc4
{[%clk 0:00:03.1]} 116... Kb7 {[%clk 0:00:21.5]} 117. Kc5 {[%clk 0:00:02.6]}
117... Kc8 {[%clk 0:00:21.6]} 118. Kc6 {[%clk 0:00:03.5]} 118... Kd8 {[%clk
0:00:21.7]} 119. Bf7 {[%clk 0:00:03.5]} 119... Kc8 {[%clk 0:00:21.9]} 120. Be7
{[%clk 0:00:03.9]} 120... Kb8 {[%clk 0:00:22.1]} 121. Be6 {[%clk 0:00:04.6]}
121... Ka7 {[%clk 0:00:22.2]} 122. Bc5+ {[%clk 0:00:04.6]} 122... Ka6 {[%clk
0:00:21.8]} 123. Bb4 {[%clk 0:00:04.2]} 123... Ka7 {[%clk 0:00:21.9]} 124. Bc4
{[%clk 0:00:04.4]} 124... Kb8 {[%clk 0:00:22.1]} 125. Be6 {[%clk 0:00:03.8]}
125... Ka7 {[%clk 0:00:22.3]} 126. Bd5 {[%clk 0:00:04]} 126... Ka6 {[%clk
0:00:23.2]} 127. Bc4+ {[%clk 0:00:03.5]} 127... Ka7 {[%clk 0:00:23.5]} 128. Bc5+
{[%clk 0:00:03]} 128... Kb8 {[%clk 0:00:23.8]} 129. Bd5 {[%clk 0:00:02.7]}
1/2-1/2

[Event "Early-Titled-Tuesday-Blitz-March-12-2024"]
[Site "Chess.com"]
[Date "2024.03.12"]
[Round "4"]
[White "javierfreilemartin"]
[Black "Pedrada88"]
[Result "0-1"]
[WhiteElo "2260"]
[BlackElo "2537"]
[TimeControl "180+1"]
[EndTime "8:35:06 PDT"]
[Termination "Pedrada88 won by resignation"]

1. c4 {[%clk 0:03:00.9]} 1... e5 {[%clk 0:02:58.4]} 2. Nc3 {[%clk 0:03:00.7]}
2... Bb4 {[%clk 0:02:58.5]} 3. Qc2 {[%clk 0:02:57.7]} 3... Nf6 {[%clk
0:02:57.1]} 4. e3 {[%clk 0:02:57.9]} 4... O-O {[%clk 0:02:56.6]} 5. Nge2 {[%clk
0:02:57.6]} 5... Re8 {[%clk 0:02:56.4]} 6. d3 {[%clk 0:02:57.3]} 6... c6 {[%clk
0:02:56.1]} 7. a3 {[%clk 0:02:56.8]} 7... Bf8 {[%clk 0:02:55.9]} 8. g3 {[%clk
0:02:56.5]} 8... d5 {[%clk 0:02:56.2]} 9. Bg2 {[%clk 0:02:55.3]} 9... d4 {[%clk
0:02:55.7]} 10. exd4 {[%clk 0:02:52.7]} 10... exd4 {[%clk 0:02:56.6]} 11. Ne4
{[%clk 0:02:52.7]} 11... Nxe4 {[%clk 0:02:54.9]} 12. Bxe4 {[%clk 0:02:52.8]}
12... Bh3 {[%clk 0:02:48.2]} 13. f4 {[%clk 0:02:44.7]} 13... Na6 {[%clk
0:02:40.6]} 14. Kf2 {[%clk 0:02:43]} 14... Rxe4 {[%clk 0:02:38.1]} 15. dxe4
{[%clk 0:02:37]} 15... d3 {[%clk 0:02:38.5]} 16. Qd1 {[%clk 0:02:33.7]} 16...
Bg4 {[%clk 0:02:08.8]} 17. b4 {[%clk 0:02:20.4]} 17... Bxe2 {[%clk 0:02:05.6]}
18. Qd2 {[%clk 0:02:16.9]} 18... Qd4+ {[%clk 0:02:04.3]} 19. Kg2 {[%clk
0:02:12.4]} 19... Qxe4+ {[%clk 0:02:02.4]} 0-1